bitfinex/quotes_BTCUSD_20250822
["timestamp","ask_amount","ask_price","bid_price","bid_amount"]
[1755862336474,0.19269168,112500.0,112490.0,0.34160272]
[1755862336674,0.53487696,112500.0,112490.0,0.34160272]
[1755862336868,0.17877777,112500.0,112490.0,0.42847237]
[1755862337103,0.52096305,112500.0,112490.0,0.42847237]
[1755862337548,0.001,112500.0,112490.0,0.42847237]
[1755862337747,0.001,112500.0,112490.0,0.77065765]
[1755862337964,0.001,112500.0,112490.0,0.92025765]
[1755862338368,0.001,112500.0,112490.0,0.94698665]
[1755862339029,0.002,112500.0,112490.0,0.96443567]
[1755862339444,0.002,112500.0,112490.0,0.81483567]
[1755862339646,0.001,112500.0,112490.0,1.17902095]
[1755862339845,0.001,112500.0,112490.0,1.39905899]
[1755862340045,0.002,112500.0,112490.0,1.59045899]
[1755862340231,0.002,112500.0,112490.0,1.05572843]
[1755862340435,0.002,112500.0,112490.0,1.39766534]
[1755862340691,0.002,112500.0,112490.0,1.24802534]
[1755862340889,0.15012516,112530.0,112520.0,0.17774617]
[1755862341121,0.00048516,112530.0,112520.0,0.43386085]
[1755862341344,0.00048516,112530.0,112520.0,0.43711085]
[1755862341543,0.01439513,112530.0,112520.0,0.43711085]
[1755862341884,0.01439513,112530.0,112520.0,0.28747085]
[1755862342104,0.01439513,112530.0,112520.0,0.43807085]
[1755862342282,0.19212551,112530.0,112520.0,0.43807085]
[1755862342487,0.19212551,112530.0,112520.0,0.43803085]
[1755862343935,0.19212551,112530.0,112520.0,0.28847085]
[1755862344154,0.01539513,112530.0,112520.0,0.43903085]
[1755862345623,0.01539513,112530.0,112520.0,0.46575185]
[1755862345888,0.01539513,112530.0,112520.0,0.80768876]
[1755862347340,0.01539513,112530.0,112520.0,0.46575185]
[1755862347573,0.01539513,112530.0,112520.0,0.80768876]
[1755862349236,0.19312551,112530.0,112520.0,0.80768876]
[1755862349565,0.17921554,112530.0,112520.0,0.80768876]
[1755862349776,0.17921554,112530.0,112520.0,0.65812876]
[1755862350007,0.17921554,112530.0,112520.0,0.80756876]
[1755862351234,0.17773038,112530.0,112520.0,0.80756876]
[1755862352659,0.19163982,112530.0,112520.0,0.80756876]
[1755862354899,0.01390944,112530.0,112520.0,0.80756876]
[1755862355345,0.19163982,112530.0,112520.0,0.80756876]
[1755862355884,0.17773038,112530.0,112520.0,0.80756876]
[1755862356944,0.17773038,112530.0,112520.0,0.65812876]
[1755862357160,0.17773038,112530.0,112520.0,0.80756876]
[1755862359244,0.1916395,112530.0,112520.0,0.80756876]
[1755862360790,0.01390912,112530.0,112520.0,0.80756876]
[1755862361201,0.1916395,112530.0,112520.0,0.80756876]
[1755862362160,0.1916395,112530.0,112520.0,0.65812876]
[1755862362361,0.1916395,112530.0,112520.0,0.8075351]
[1755862363224,0.01390912,112530.0,112520.0,0.8075351]
[1755862363758,0.1916395,112530.0,112520.0,0.8075351]
[1755862364148,0.01390912,112530.0,112520.0,0.8075351]
[1755862364368,0.1916395,112530.0,112520.0,0.8075351]
[1755862367302,0.1916395,112530.0,112520.0,1.14943835]
[1755862367499,0.1916395,112530.0,112520.0,0.46563185]
[1755862367956,0.1916395,112530.0,112520.0,0.8075351]
[1755862368517,0.1916395,112530.0,112520.0,1.14943835]
[1755862370371,0.1916395,112530.0,112520.0,0.46563185]
[1755862370580,0.1916395,112530.0,112520.0,0.6580951]
[1755862370734,0.1916395,112530.0,112520.0,0.8075351]
[1755862371103,0.1916395,112530.0,112520.0,0.46563185]
[1755862371304,0.1916395,112530.0,112520.0,0.8075351]
[1755862371564,0.1916395,112530.0,112520.0,0.62978893]
[1755862371745,0.1916395,112530.0,112520.0,0.8075351]
[1755862372350,0.1916395,112530.0,112520.0,0.62878893]
[1755862372559,0.1916395,112530.0,112520.0,0.8065351]
[1755862373184,0.1916395,112530.0,112520.0,0.8055351]
[1755862373389,0.1916395,112530.0,112520.0,0.8065351]
[1755862373767,0.1926395,112530.0,112520.0,0.62978893]
[1755862374145,0.1916395,112530.0,112520.0,0.8055351]
[1755862374315,0.1926395,112530.0,112520.0,0.63178893]
[1755862374527,0.1926395,112530.0,112520.0,0.14044568]
[1755862374744,0.53661275,112530.0,112520.0,0.13511568]
[1755862374932,0.53974275,112530.0,112520.0,0.25783468]
[1755862375143,0.53974275,112530.0,112520.0,0.15344]
[1755862375347,0.55375111,112530.0,112520.0,0.15344]
[1755862375783,0.55375111,112530.0,112520.0,0.004]
[1755862375784,0.72991611,112530.0,112520.0,0.004]
[1755862375915,0.72991611,112530.0,112520.0,0.15344]
[1755862376131,0.38801286,112530.0,112520.0,0.168784]
[1755862376344,0.7300784,112530.0,112520.0,0.168784]
[1755862376758,0.92270394,112530.0,112520.0,0.168784]
[1755862377163,0.92270394,112530.0,112520.0,0.019344]
[1755862377342,1.07214394,112530.0,112520.0,0.019344]
[1755862377980,0.38801286,112530.0,112520.0,0.019344]
[1755862378181,1.07214394,112530.0,112520.0,0.019344]
[1755862378586,0.7300784,112530.0,112520.0,0.019344]
[1755862378804,1.08605433,112530.0,112520.0,0.019344]
[1755862379190,1.08605433,112530.0,112520.0,0.004]
[1755862380924,1.45922512,112530.0,112520.0,0.004]
[1755862381089,6.45922512,112530.0,112520.0,0.004]
[1755862381473,6.52758512,112530.0,112520.0,0.004]
[1755862381705,6.54319401,112530.0,112520.0,0.002]
[1755862381913,6.54940701,112530.0,112520.0,0.002]
[1755862382144,6.55040701,112530.0,112520.0,0.003]
[1755862382330,6.54318288,112530.0,112520.0,0.002]
[1755862382754,6.54318288,112530.0,112520.0,0.001]
[1755862382755,6.54518288,112530.0,112520.0,0.001]
[1755862383014,0.17777777,112500.0,112490.0,0.13915243]
[1755862383212,0.67447331,112500.0,112490.0,0.20899515]
[1755862383786,0.71511894,112500.0,112490.0,0.20899515]
[1755862384174,0.71511894,112500.0,112490.0,0.13855711]
[1755862385030,0.71611894,112500.0,112490.0,0.14355711]
[1755862385379,0.71611894,112500.0,112490.0,0.07371439]
[1755862385642,0.56667894,112500.0,112490.0,0.07371439]
[1755862385843,0.71611894,112500.0,112490.0,0.07371439]
[1755862386052,0.71611894,112500.0,112490.0,0.07571439]
[1755862386626,0.70220531,112500.0,112490.0,0.07571439]
[1755862387867,0.69908531,112500.0,112490.0,0.07571439]
[1755862389083,0.54964531,112500.0,112490.0,0.07571439]
[1755862389336,0.69912531,112500.0,112490.0,0.07571439]
[1755862389676,0.35498977,112500.0,112490.0,0.08085439]
[1755862389883,0.21942347,112500.0,112490.0,0.1288322]
[1755862390508,0.55944773,112500.0,112490.0,0.1288322]
[1755862392864,0.21738219,112500.0,112490.0,0.1288322]
[1755862393070,0.55944773,112500.0,112490.0,0.1288322]
[1755862395073,0.53271573,112500.0,112490.0,0.1288322]
[1755862395297,0.53478573,112500.0,112490.0,0.1288322]
[1755862398159,0.19272019,112500.0,112490.0,0.1288322]
[1755862398374,0.53478573,112500.0,112490.0,0.1288322]
[1755862398517,0.53478573,112500.0,112490.0,0.07571439]
[1755862399056,0.52087203,112500.0,112490.0,0.07571439]
[1755862401517,0.51880203,112500.0,112490.0,0.08066439]
[1755862403107,0.53271559,112500.0,112490.0,0.25845797]
[1755862403512,0.53271559,112500.0,112490.0,0.08066439]
[1755862403714,0.53271559,112500.0,112490.0,0.12862305]
[1755862404409,0.68219559,112500.0,112490.0,0.21773021]
[1755862404616,0.68219559,112500.0,112490.0,0.2155078]
[1755862405174,0.48278877,112500.0,112490.0,0.2155078]
[1755862405383,0.66056654,112500.0,112490.0,0.2155078]
[1755862406084,0.64665298,112500.0,112490.0,0.2155078]
[1755862406292,0.51996429,112500.0,112490.0,0.39330138]
[1755862407069,0.86215081,112500.0,112490.0,0.39330138]
[1755862407400,0.86215081,112500.0,112490.0,0.2155078]
[1755862408449,0.86215081,112500.0,112490.0,0.39330138]
[1755862408857,0.86215081,112500.0,112490.0,0.2155078]
[1755862409062,0.86215081,112500.0,112490.0,0.39330138]
[1755862409265,0.87606436,112500.0,112490.0,0.39330138]
[1755862409739,0.87606436,112500.0,112490.0,0.2155078]
[1755862410289,0.87606436,112500.0,112490.0,0.39330138]
[1755862413894,0.19169132,112500.0,112490.0,0.39330138]
[1755862414069,0.87606436,112500.0,112490.0,0.39330138]
[1755862415048,0.19169132,112500.0,112490.0,0.39330138]
[1755862415244,0.53387784,112500.0,112490.0,0.39330138]
[1755862415457,0.87606436,112500.0,112490.0,0.39330138]
[1755862416180,0.87606436,112500.0,112490.0,0.3649878]
[1755862417323,0.87606436,112500.0,112490.0,0.54278138]
[1755862418867,0.86215081,112500.0,112490.0,0.54278138]
[1755862419371,0.66944275,112510.0,112490.0,0.54278138]
[1755862419595,0.32725623,112510.0,112500.0,0.08688475]
[1755862419793,0.32725623,112510.0,112500.0,0.14581489]
[1755862419994,0.32938623,112510.0,112500.0,0.14581489]
[1755862420599,0.67157275,112510.0,112500.0,0.32359266]
[1755862421051,0.66944275,112510.0,112500.0,0.32359266]
[1755862421251,0.52096275,112510.0,112500.0,0.32359266]
[1755862421616,0.52094849,112510.0,112500.0,0.32359266]
[1755862421793,0.17876197,112510.0,112500.0,0.32359266]
[1755862421971,0.34418652,112510.0,112500.0,0.32659266]
[1755862422173,0.35809836,112510.0,112500.0,0.32659266]
[1755862422375,0.35809836,112510.0,112500.0,0.32759266]
[1755862422550,0.01591184,112510.0,112500.0,0.32759266]
[1755862423115,0.35809836,112510.0,112500.0,0.32759266]
[1755862423690,0.01591184,112510.0,112500.0,0.32759266]
[1755862423894,0.35809836,112510.0,112500.0,0.32759266]
[1755862424302,0.01591184,112510.0,112500.0,0.66977918]
[1755862424551,0.01591184,112510.0,112500.0,0.32759266]
[1755862424758,0.01591184,112510.0,112500.0,0.36665938]
[1755862425119,0.01591184,112510.0,112500.0,0.7088459]
[1755862426208,0.002,112510.0,112500.0,0.7078459]
[1755862426408,0.002,112510.0,112500.0,0.36565938]
[1755862427755,0.67808107,112530.0,112510.0,0.17774624]
[1755862427903,0.67808107,112530.0,112520.0,0.17774617]
[1755862428119,0.67816107,112530.0,112520.0,0.17774617]
[1755862428352,0.52872107,112530.0,112520.0,0.17774617]
[1755862428570,0.67816107,112530.0,112520.0,0.17774617]
[1755862428718,0.52872107,112530.0,112520.0,0.26463092]
[1755862428921,0.52872107,112530.0,112520.0,0.32380106]
[1755862429142,0.52872107,112530.0,112520.0,0.32480106]
[1755862429143,0.54363127,112530.0,112520.0,0.32480106]
[1755862429347,0.54663127,112530.0,112520.0,0.32480106]
[1755862430360,0.0179102,112530.0,112520.0,0.32480106]
[1755862430638,0.19564058,112530.0,112520.0,0.32480106]
[1755862431386,0.0179102,112530.0,112520.0,0.32480106]
[1755862431585,0.35993438,112530.0,112520.0,0.32480106]
[1755862431789,0.53766476,112530.0,112520.0,0.32480106]
[1755862432206,0.35993438,112530.0,112520.0,0.32480106]
[1755862432376,0.0179102,112530.0,112520.0,0.32480106]
[1755862432576,0.19564058,112530.0,112520.0,0.32480106]
[1755862432852,0.19564058,112530.0,112520.0,0.47424106]
[1755862433042,0.0179102,112530.0,112520.0,0.47424106]
[1755862434263,0.53766476,112530.0,112520.0,0.47424106]
[1755862434437,0.19564058,112530.0,112520.0,0.47424106]
[1755862434783,0.53766476,112530.0,112520.0,0.47424106]
[1755862435529,0.19564058,112530.0,112520.0,0.47424106]
[1755862437306,0.53766476,112530.0,112520.0,0.47424106]
[1755862437630,0.53766476,112530.0,112520.0,0.32480106]
[1755862437771,0.53766476,112530.0,112520.0,0.47420106]
[1755862437973,0.53766476,112530.0,112520.0,0.32480106]
[1755862438203,0.53766476,112530.0,112520.0,0.47420106]
[1755862438357,0.53969476,112530.0,112520.0,0.14398489]
[1755862438560,0.88489894,112530.0,112520.0,0.14186489]
[1755862438782,0.94598721,112530.0,112520.0,0.001]
[1755862439009,0.87098874,112530.0,112520.0,0.001]
[1755862439613,1.29880301,112530.0,112520.0,0.001]
[1755862442359,1.31271539,112530.0,112520.0,0.001]
[1755862442519,1.31171539,112530.0,112520.0,0.001]
[1755862442922,1.2785446,112530.0,112520.0,0.001]
[1755862443150,0.17777777,112500.0,112490.0,0.35998243]
[1755862443370,0.51980195,112500.0,112490.0,0.53585683]
[1755862443595,0.17777777,112500.0,112490.0,0.46749683]
[1755862443938,0.19169049,112500.0,112490.0,0.46749683]
[1755862444136,0.53371467,112500.0,112490.0,0.46749683]
[1755862444772,0.53371467,112500.0,112490.0,0.46949683]
[1755862445158,0.53371467,112500.0,112490.0,0.64729041]
[1755862445369,0.53471467,112500.0,112490.0,0.65329041]
[1755862445537,0.19269049,112500.0,112490.0,0.65329041]
[1755862445950,0.17877777,112500.0,112490.0,0.65329041]
[1755862446593,0.17877777,112500.0,112490.0,0.58285237]
[1755862447626,0.001,112500.0,112490.0,0.58285237]
[1755862448275,0.17877777,112500.0,112490.0,0.58285237]
[1755862448698,0.001,112500.0,112490.0,0.58285237]
[1755862449218,0.19269007,112500.0,112490.0,0.58285237]
[1755862450269,0.53674425,112500.0,112490.0,0.25565879]
[1755862450611,0.53674425,112500.0,112490.0,0.52235879]
[1755862450844,0.53674425,112500.0,112490.0,0.51716879]
[1755862451030,0.53674425,112500.0,112490.0,0.66660879]
[1755862451369,0.53674425,112500.0,112490.0,0.51716879]
[1755862451545,0.53674425,112500.0,112490.0,0.66660879]
[1755862451694,0.53674425,112500.0,112490.0,0.51716879]
[1755862451894,0.53674425,112500.0,112490.0,0.66660879]
[1755862452502,0.53989425,112500.0,112490.0,0.39990879]
[1755862453361,0.5500722,112500.0,112490.0,0.39990879]
[1755862456104,0.20804802,112500.0,112490.0,0.39990879]
[1755862456314,0.37129443,112500.0,112490.0,0.39990879]
[1755862458793,0.53186998,112500.0,112490.0,0.39990879]
[1755862459552,0.1898458,112500.0,112490.0,0.39990879]
[1755862459707,0.53186998,112500.0,112490.0,0.39990879]
[1755862459909,0.53186998,112500.0,112490.0,0.25046879]
[1755862460119,0.53186998,112500.0,112490.0,0.39994879]
[1755862461543,0.54578361,112500.0,112490.0,0.39994879]
[1755862462700,0.54578361,112500.0,112490.0,0.31307914]
[1755862463617,0.31981478,112500.0,112490.0,0.31307914]
[1755862463791,0.49759255,112500.0,112490.0,0.31307914]
[1755862464158,0.49759255,112500.0,112490.0,0.16359914]
[1755862464401,0.53371558,112500.0,112490.0,0.31303914]
[1755862464605,0.53371558,112500.0,112490.0,0.35181353]
[1755862464984,0.87573976,112500.0,112490.0,0.11548878]
[1755862465202,0.56044758,112500.0,112490.0,0.07671439]
[1755862465725,0.2184234,112500.0,112490.0,0.07671439]
[1755862465926,0.56044758,112500.0,112490.0,0.07671439]
[1755862466588,0.57025052,112500.0,112490.0,0.07671439]
[1755862466791,0.57015493,112500.0,112490.0,0.07671439]
[1755862467043,0.57015493,112500.0,112490.0,0.10680031]
[1755862467044,0.91217911,112500.0,112490.0,0.10680031]
[1755862467260,0.91409911,112500.0,112490.0,0.10680031]
[1755862467675,0.91409911,112500.0,112490.0,0.09880031]
[1755862468074,0.91509911,112500.0,112490.0,0.09980031]
[1755862468591,0.91609911,112500.0,112490.0,0.10080031]
[1755862469062,1.06553911,112500.0,112490.0,0.10080031]
[1755862469574,1.06553911,112500.0,112490.0,0.09980031]
[1755862469772,0.91709911,112500.0,112490.0,0.09980031]
[1755862470022,1.06653911,112500.0,112490.0,0.09980031]
[1755862470305,1.39272107,112500.0,112490.0,0.06971439]
[1755862472416,1.39321589,112500.0,112490.0,0.06971439]
[1755862473177,1.24377589,112500.0,112490.0,0.06971439]
[1755862473377,1.39321589,112500.0,112490.0,0.06971439]
[1755862473630,1.40713013,112500.0,112490.0,0.09910031]
[1755862475218,1.40713013,112500.0,112490.0,0.06971439]
[1755862476060,1.39321589,112500.0,112490.0,0.06971439]
[1755862478891,1.39321589,112500.0,112490.0,0.07282439]
[1755862479284,1.40713013,112500.0,112490.0,0.07282439]
[1755862482480,1.40713013,112500.0,112490.0,0.06971439]
[1755862483319,0.57314695,112500.0,112490.0,0.09910431]
[1755862483528,1.40713013,112500.0,112490.0,0.10221431]
[1755862483712,1.40713013,112500.0,112490.0,0.06971439]
[1755862486707,1.40713013,112500.0,112490.0,0.07282439]
[1755862489683,1.39321589,112500.0,112490.0,0.07282439]
[1755862491679,1.39321589,112500.0,112490.0,0.07495439]
[1755862492135,0.70867271,112500.0,112490.0,0.07495439]
[1755862492310,1.39321589,112500.0,112490.0,0.07495439]
[1755862492494,1.39321589,112500.0,112490.0,0.08961331]
[1755862492992,1.40713012,112500.0,112490.0,0.08961331]
[1755862495949,1.39321589,112500.0,112490.0,0.08961331]
[1755862497240,0.70867271,112500.0,112490.0,0.08961331]
[1755862497466,1.39321589,112500.0,112490.0,0.08961331]
[1755862498963,1.39321589,112500.0,112490.0,0.10744331]
[1755862499174,1.39321589,112500.0,112490.0,0.08961331]
[1755862499561,1.40713012,112500.0,112490.0,0.08961331]
[1755862501571,1.40713012,112500.0,112490.0,0.07495439]
[1755862503237,1.40709012,112500.0,112490.0,0.07495439]
[1755862504258,1.40517012,112500.0,112490.0,0.07495439]
[1755862505863,1.39125589,112500.0,112490.0,0.07495439]
[1755862506637,1.39133589,112500.0,112490.0,0.07495439]
[1755862507292,1.39133589,112500.0,112490.0,0.08961331]
[1755862509300,1.40525004,112500.0,112490.0,0.08961331]
[1755862511398,1.40525004,112500.0,112490.0,0.08437331]
[1755862511602,1.40525004,112500.0,112490.0,0.08753331]
[1755862513992,1.40525004,112500.0,112490.0,0.08437331]
[1755862514159,1.40525004,112500.0,112490.0,0.06971439]
[1755862517676,1.74752163,112500.0,112490.0,0.06971439]
[1755862517874,1.74872163,112500.0,112490.0,0.06971439]
[1755862519913,1.74752163,112500.0,112490.0,0.06971439]
[1755862520121,1.74752163,112500.0,112490.0,0.08417231]
[1755862520547,1.74752163,112500.0,112490.0,0.06971439]
[1755862520807,1.74872163,112500.0,112490.0,0.06971439]
[1755862521200,1.74752163,112500.0,112490.0,0.06971439]
[1755862522899,6.74872163,112500.0,112490.0,0.06971439]
[1755862523115,6.63129242,112500.0,112490.0,0.06971439]
[1755862523327,6.76677827,112500.0,112490.0,0.06971439]
[1755862523829,6.76677827,112500.0,112490.0,0.05221439]
[1755862524029,6.76377827,112500.0,112490.0,0.05121439]
[1755862524249,6.76677827,112500.0,112490.0,0.05221439]
[1755862524429,6.76877827,112500.0,112490.0,0.05221439]
[1755862524809,6.76677827,112500.0,112490.0,0.05221439]
[1755862525031,6.75897533,112500.0,112490.0,0.05221439]
[1755862525421,6.60957533,112500.0,112490.0,0.05221439]
[1755862525655,6.75897533,112500.0,112490.0,0.05221439]
[1755862526003,6.75897533,112500.0,112490.0,0.05544439]
[1755862526207,6.75897533,112500.0,112490.0,0.05221439]
[1755862526376,6.77289053,112500.0,112490.0,0.05221439]
[1755862526551,6.75897533,112500.0,112490.0,0.05221439]
[1755862527385,6.60957533,112500.0,112490.0,0.05221439]
[1755862527579,6.75897533,112500.0,112490.0,0.05544439]
[1755862529302,6.75897533,112500.0,112490.0,0.05221439]
[1755862529725,6.77289058,112500.0,112490.0,0.05221439]
[1755862529925,6.80080806,112500.0,112490.0,0.05221439]
[1755862530125,6.77289058,112500.0,112490.0,0.05221439]
[1755862531265,6.77289058,112500.0,112490.0,0.05544439]
[1755862531472,6.77289058,112500.0,112490.0,0.05221439]
[1755862531630,6.77289058,112500.0,112490.0,0.05544439]
[1755862532644,6.73971979,112500.0,112490.0,0.05221439]
[1755862534598,6.73971979,112500.0,112490.0,0.05544439]
[1755862535100,6.73971979,112500.0,112490.0,0.05221439]
[1755862536676,6.59031979,112500.0,112490.0,0.05221439]
[1755862536869,6.73971979,112500.0,112490.0,0.07031231]
[1755862537203,6.59031979,112500.0,112490.0,0.07031231]
[1755862537401,6.2479682,112500.0,112490.0,0.07031231]
[1755862537643,1.2479682,112500.0,112490.0,0.07031231]
[1755862537845,0.22342502,112500.0,112490.0,0.07031231]
[1755862538175,1.04345295,112500.0,112490.0,0.07031231]
[1755862538507,1.38345295,112500.0,112490.0,0.07031231]
[1755862540842,0.69890977,112500.0,112490.0,0.07031231]
[1755862541047,1.39736743,112500.0,112490.0,0.07031231]
[1755862542808,0.71278425,112500.0,112490.0,0.07031231]
[1755862542984,1.39732743,112500.0,112490.0,0.07031231]
[1755862543813,1.24796743,112500.0,112490.0,0.07031231]
[1755862543983,1.39732743,112500.0,112490.0,0.07031231]
[1755862545212,1.24796743,112500.0,112490.0,0.07031231]
[1755862545592,1.39732743,112500.0,112490.0,0.07031231]
[1755862547026,0.71278425,112500.0,112490.0,0.07031231]
[1755862547283,1.39732743,112500.0,112490.0,0.07031231]
[1755862548720,1.24796743,112500.0,112490.0,0.07031231]
[1755862548892,1.39732743,112500.0,112490.0,0.07031231]
[1755862549229,1.38341295,112500.0,112490.0,0.07031231]
[1755862552320,1.27905295,112500.0,112490.0,0.07031231]
[1755862552533,1.29296707,112500.0,112490.0,0.07031231]
[1755862552683,1.44232707,112500.0,112490.0,0.07031231]
[1755862554703,1.43997146,112500.0,112490.0,0.07031231]
[1755862555774,1.43993146,112500.0,112490.0,0.07031231]
[1755862556109,1.42601734,112500.0,112490.0,0.07031231]
[1755862559224,1.43993151,112500.0,112490.0,0.07031231]
[1755862559911,1.44185151,112500.0,112490.0,0.07031231]
[1755862560067,1.43993151,112500.0,112490.0,0.07031231]
[1755862561281,1.44185151,112500.0,112490.0,0.07031231]
[1755862562046,1.44185151,112500.0,112490.0,0.06815231]
[1755862563009,1.29253151,112500.0,112490.0,0.06815231]
[1755862563313,1.44185151,112500.0,112490.0,0.06815231]
[1755862563542,1.44185151,112500.0,112490.0,0.06492231]
[1755862563746,1.44305151,112500.0,112490.0,0.06492231]
[1755862564309,1.47096899,112500.0,112490.0,0.06492231]
[1755862565182,1.32044899,112500.0,112490.0,0.06492231]
[1755862565389,1.44185151,112500.0,112490.0,0.06492231]
[1755862565774,0.60798833,112500.0,112490.0,0.06492231]
[1755862565961,1.44185151,112500.0,112490.0,0.06492231]
[1755862568140,1.29253151,112500.0,112490.0,0.06492231]
[1755862568338,0.75730833,112500.0,112490.0,0.06790231]
[1755862568543,1.44185151,112500.0,112490.0,0.06790231]
[1755862568740,1.44185151,112500.0,112490.0,0.06492231]
[1755862569359,1.42793734,112500.0,112490.0,0.06492231]
[1755862570255,1.42601734,112500.0,112490.0,0.06998231]
[1755862570721,1.42793734,112500.0,112490.0,0.06998231]
[1755862570917,1.42793734,112500.0,112490.0,0.06790231]
[1755862572063,1.42793734,112500.0,112490.0,0.06492231]
[1755862572203,1.44185158,112500.0,112490.0,0.06492231]
[1755862573565,0.7573084,112500.0,112490.0,0.06492231]
[1755862573886,1.44185158,112500.0,112490.0,0.06492231]
[1755862574058,0.7573084,112500.0,112490.0,0.06790231]
[1755862574212,1.44185158,112500.0,112490.0,0.06492231]
[1755862576327,1.42793734,112500.0,112490.0,0.06492231]
[1755862578363,0.74339416,112500.0,112490.0,0.06492231]
[1755862578565,0.74339416,112500.0,112490.0,0.06790231]
[1755862578928,1.42793734,112500.0,112490.0,0.06790231]
[1755862579370,1.44185165,112500.0,112490.0,0.06492231]
[1755862579678,1.26642949,112500.0,112490.0,0.06492231]
[1755862579981,1.44420726,112500.0,112490.0,0.06492231]
[1755862581734,0.75966408,112500.0,112490.0,0.06492231]
[1755862581866,0.75966408,112500.0,112490.0,0.07000231]
[1755862582070,1.29488726,112500.0,112490.0,0.07000231]
[1755862582277,1.44416726,112500.0,112490.0,0.07000231]
[1755862583173,1.44416726,112500.0,112490.0,0.06492231]
[1755862584141,0.75962408,112500.0,112490.0,0.06790231]
[1755862584367,1.44416726,112500.0,112490.0,0.06790231]
[1755862588178,1.44416726,112500.0,112490.0,0.07000231]
[1755862589201,1.43025295,112500.0,112490.0,0.07000231]
[1755862589921,1.43025295,112500.0,112490.0,0.06492231]
[1755862590050,1.43025295,112500.0,112490.0,0.05221439]
[1755862590243,0.74570977,112500.0,112490.0,0.05221439]
[1755862590455,1.43025295,112500.0,112490.0,0.05519439]
[1755862590689,1.43025295,112500.0,112490.0,0.05221439]
[1755862592052,1.43025295,112500.0,112490.0,0.05519439]
[1755862592260,1.44416738,112500.0,112490.0,0.05519439]
[1755862592685,1.44416738,112500.0,112490.0,0.06787731]
[1755862593087,1.44416738,112500.0,112490.0,0.05519439]
[1755862593286,1.44416738,112500.0,112490.0,0.05221439]
[1755862596362,1.43025295,112500.0,112490.0,0.05221439]
[1755862599419,1.44416741,112500.0,112490.0,0.05221439]
[1755862602532,1.50525568,112500.0,112490.0,0.05221439]
[1755862602689,1.50645568,112500.0,112490.0,0.05221439]
[1755862602890,1.50525568,112500.0,112490.0,0.05221439]
[1755862603107,1.50645568,112500.0,112490.0,0.05221439]
[1755862603501,1.50645568,112500.0,112490.0,0.06459931]
[1755862603720,1.50525568,112500.0,112490.0,0.06459931]
[1755862603920,0.8207125,112500.0,112490.0,0.06459931]
[1755862604122,1.50525568,112500.0,112490.0,0.06459931]
[1755862605284,0.75962423,112500.0,112490.0,0.06459931]
[1755862605466,1.44416741,112500.0,112490.0,0.06459931]
[1755862605803,1.44416741,112500.0,112490.0,0.05221439]
[1755862608860,1.29488741,112500.0,112490.0,0.05221439]
[1755862609063,1.44420741,112500.0,112490.0,0.05221439]
[1755862609268,1.43029295,112500.0,112490.0,0.05221439]
[1755862611496,1.43021295,112500.0,112490.0,0.05221439]
[1755862611710,1.43021295,112500.0,112490.0,0.06489731]
[1755862612419,1.44412744,112500.0,112490.0,0.06489731]
[1755862613870,1.07239544,112500.0,112490.0,0.06489731]
[1755862614074,1.09912944,112500.0,112490.0,0.06489731]
[1755862614709,1.09912944,112500.0,112490.0,0.05221439]
[1755862616037,1.08521495,112500.0,112490.0,0.05221439]
[1755862616441,0.93597495,112500.0,112490.0,0.05543439]
[1755862616804,1.08521495,112500.0,112490.0,0.05758439]
[1755862618355,1.42521495,112500.0,112490.0,0.05758439]
[1755862618579,0.74067177,112500.0,112490.0,0.05758439]
[1755862618784,1.42521495,112500.0,112490.0,0.07050631]
[1755862619515,1.43912945,112500.0,112490.0,0.07050631]
[1755862621415,0.60342627,112500.0,112490.0,0.07050631]
[1755862621622,1.43736945,112500.0,112490.0,0.07050631]
[1755862622578,0.60342627,112500.0,112490.0,0.07050631]
[1755862622701,1.28796945,112500.0,112490.0,0.07050631]
[1755862622897,1.43740945,112500.0,112490.0,0.07050631]
[1755862623802,1.28796945,112500.0,112490.0,0.07050631]
[1755862623965,1.43740945,112500.0,112490.0,0.07050631]
[1755862625729,1.28796945,112500.0,112490.0,0.07050631]
[1755862625918,1.43736945,112500.0,112490.0,0.07050631]
[1755862626127,1.28796945,112500.0,112490.0,0.07050631]
[1755862626259,1.43736945,112500.0,112490.0,0.07050631]
[1755862627333,1.43744945,112500.0,112490.0,0.07050631]
[1755862627663,1.43744945,112500.0,112490.0,0.06513631]
[1755862628686,1.28804945,112500.0,112490.0,0.06513631]
[1755862628923,1.43744945,112500.0,112490.0,0.06835631]
[1755862629124,1.42353495,112500.0,112490.0,0.06835631]
[1755862630180,1.42353495,112500.0,112490.0,0.06513631]
[1755862630339,1.45670574,112500.0,112490.0,0.06513631]
[1755862630541,1.45670574,112500.0,112490.0,0.06835631]
[1755862630963,1.42353495,112500.0,112490.0,0.06835631]
[1755862631867,1.42353495,112500.0,112490.0,0.06517631]
[1755862632411,1.43744935,112500.0,112490.0,0.06517631]
[1755862632625,0.75290617,112500.0,112490.0,0.06517631]
[1755862632827,1.43744935,112500.0,112490.0,0.06517631]
[1755862633028,1.43744935,112500.0,112490.0,0.06839631]
[1755862634893,0.75290617,112500.0,112490.0,0.06839631]
[1755862635216,1.43744935,112500.0,112490.0,0.06839631]
[1755862636065,1.43744935,112500.0,112490.0,0.06517631]
[1755862636206,1.42353495,112500.0,112490.0,0.06517631]
[1755862637893,1.42353495,112500.0,112490.0,0.06816631]
[1755862639405,1.43744942,112500.0,112490.0,0.06816631]
[1755862639910,0.75290624,112500.0,112490.0,0.07013631]
[1755862640135,1.43744942,112500.0,112490.0,0.07013631]
[1755862640586,1.43732942,112500.0,112490.0,0.07013631]
[1755862640987,1.28804942,112500.0,112490.0,0.07013631]
[1755862641412,1.43744942,112500.0,112490.0,0.07013631]
[1755862641765,1.43736942,112500.0,112490.0,0.07013631]
[1755862643483,1.43928942,112500.0,112490.0,0.06517631]
[1755862645928,1.43928942,112500.0,112490.0,0.05225439]
[1755862646137,1.78276101,112500.0,112490.0,0.05225439]
[1755862647396,1.8159318,112500.0,112490.0,0.05225439]
[1755862647603,0.85751703,112500.0,112490.0,0.05225439]
[1755862647821,1.8843318,112500.0,112490.0,0.05225439]
[1755862648646,1.87041733,112500.0,112490.0,0.05225439]
[1755862650172,1.83724654,112500.0,112490.0,0.05225439]
[1755862651576,1.83724654,112500.0,112480.0,0.07163478]
[1755862651577,0.51779358,112490.0,112480.0,0.07163478]
[1755862651831,0.51779358,112490.0,112480.0,0.06903409]
[1755862651832,6.75817688,112490.0,112480.0,0.06903409]
[1755862651958,6.75817688,112490.0,112480.0,0.05903409]
[1755862652170,6.78491788,112490.0,112480.0,0.05903409]
[1755862652383,0.17780938,112480.0,112470.0,0.07015379]
[1755862652583,6.75835268,112480.0,112470.0,0.07015379]
[1755862652788,6.75835268,112480.0,112470.0,0.00048517]
[1755862653015,0.17997004,112470.0,112460.0,0.07107637]
[1755862653174,6.4535977,112470.0,112460.0,0.07107637]
[1755862653378,6.51852187,112470.0,112460.0,0.07107637]
[1755862653578,6.14833254,112470.0,112460.0,0.07107637]
[1755862653824,6.12352713,112470.0,112460.0,0.07107637]
[1755862654093,6.12338715,112470.0,112460.0,0.07102975]